bitfinex/quotes_ETHUSD_20250815
["timestamp","ask_amount","ask_price","bid_price","bid_amount"]
[1755286862000,0.48624908,4408.4,4408.3,2.26844815]
[1755286862698,0.48624908,4408.4,4408.3,2.84710496]
[1755286862899,0.48624908,4408.4,4408.3,6.87270496]
[1755286863097,0.60436328,4409.1,4409.0,2.268088]
[1755286863430,0.48567393,4409.1,4409.0,2.268088]
[1755286863646,0.48567393,4409.1,4409.0,2.857288]
[1755286863948,0.48567393,4409.1,4409.0,3.72493277]
[1755286864331,0.48567393,4409.1,4409.0,3.24933277]
[1755286864553,0.48567393,4409.1,4409.0,6.80033277]
[1755286864953,0.93187393,4409.1,4409.0,2.381688]
[1755286865256,0.48567393,4409.1,4409.0,2.381688]
[1755286865566,0.48567393,4409.1,4409.0,5.931688]
[1755286865870,0.02,4409.4,4409.0,7.1392]
[1755286866065,1.21089584,4410.3,4409.6,2.26777939]
[1755286866212,0.002,4410.6,4410.3,2.38101944]
[1755286866416,0.002,4410.5,4410.3,2.38101944]
[1755286868411,0.002,4410.5,4410.4,2.26736803]
[1755286868639,0.002,4410.5,4410.4,3.0896742]
[1755286869443,0.002,4410.5,4410.4,2.26736803]
[1755286869968,0.4419,4410.5,4410.4,2.26736803]
[1755286872583,0.002,4410.5,4410.4,2.38096803]
[1755286872885,0.002,4410.5,4410.4,5.92796803]
[1755286873193,0.002,4410.5,4410.4,6.79169678]
[1755286873986,0.002,4410.5,4410.4,3.24469678]
[1755286874143,0.4419,4410.5,4410.4,2.38096803]
[1755286874560,0.002,4410.5,4410.4,2.38096803]
[1755286875483,0.4419,4410.5,4410.4,2.38096803]
[1755286876755,0.002,4410.5,4410.4,2.38096803]
[1755286878153,0.002,4410.5,4410.4,5.92396803]
[1755286878646,0.002,4410.5,4410.4,10.33729678]
[1755286878947,0.002,4410.9,4410.8,2.26716241]
[1755286879261,0.002,4410.9,4410.8,5.92176241]
[1755286879654,0.002,4410.9,4410.8,9.96986241]
[1755286879857,0.002,4410.9,4410.8,9.47176241]
[1755286880057,0.002,4410.9,4410.8,10.64566517]
[1755286881539,0.894,4410.9,4408.2,2.26847655]
[1755286881738,0.894,4410.9,4407.1,0.021]
[1755286881739,0.892,4410.8,4408.7,3.545]
[1755286881974,0.892,4410.7,4410.1,2.26748942]
[1755286882176,0.48620922,4410.9,4409.8,2.2676752]
[1755286882401,0.892,4410.6,4410.2,2.26742821]
[1755286882606,0.892,4410.6,4409.2,3.0]
[1755286882607,0.892,4410.5,4409.9,2.26758414]
[1755286882805,0.27532215,4410.8,4409.8,2.26767213]
[1755286882991,0.27532215,4410.8,4410.3,2.26741944]
[1755286882992,0.4399,4410.4,4410.3,2.26741944]
[1755286883391,0.892,4410.8,4410.6,2.26722152]
[1755286883708,0.892,4410.7,4410.4,2.26736627]
[1755286883908,0.002,4410.9,4409.5,3.93110266]
[1755286884120,0.892,4410.6,4410.5,2.26731663]
[1755286884273,0.002,4410.9,4410.8,2.26716241]
[1755286884784,0.002,4410.9,4410.8,2.28983403]
[1755286884993,0.002,4410.9,4410.8,2.74554373]
[1755286885202,0.022,4411.4,4410.9,2.26711102]
[1755286885506,0.022,4411.4,4411.3,2.26690544]
[1755286886521,0.4619,4411.4,4411.3,2.26690544]
[1755286886715,0.022,4411.4,4411.3,2.26690544]
[1755286887009,0.914,4411.4,4411.3,2.26690544]
[1755286887182,0.4619,4411.4,4411.3,2.26690544]
[1755286887774,0.022,4411.4,4411.3,2.26690544]
[1755286888418,0.022,4411.4,4411.3,2.72029576]
[1755286889521,0.4619,4411.4,4411.3,2.72029576]
[1755286889718,0.4619,4411.4,4411.3,2.26690544]
[1755286890932,0.914,4411.4,4411.3,2.26690544]
[1755286891294,0.4619,4411.4,4411.3,2.26690544]
[1755286891592,0.022,4411.4,4411.3,2.38050544]
[1755286893399,1e-08,4411.4,4411.3,9.96860544]
[1755286893605,1e-08,4411.4,4411.3,11.19447576]
[1755286893804,1e-08,4411.4,4411.3,10.69637576]
[1755286894214,1e-08,4411.4,4411.3,6.60637576]
[1755286894916,1e-08,4411.4,4411.3,3.60637576]
[1755286895116,1e-08,4411.4,4411.3,2.38050544]
[1755286895830,0.43990001,4411.4,4411.3,2.38050544]
[1755286896194,1e-08,4411.4,4411.3,2.38050544]
[1755286896734,0.46770001,4411.4,4411.3,2.38050544]
[1755286897095,1e-08,4411.4,4411.3,2.38050544]
[1755286897292,1e-08,4411.4,4411.3,6.73715576]
[1755286897548,1e-08,4411.4,4411.3,5.91850544]
[1755286898217,0.46770001,4411.4,4411.3,2.38050544]
[1755286899225,0.92370001,4411.4,4411.3,2.26690544]
[1755286899451,0.92370001,4411.4,4411.1,0.1136]
[1755286899599,0.92370001,4411.4,4410.9,0.1136]
[1755286899798,0.4677,4411.3,4410.9,0.1136]
[1755286900032,0.4677,4411.3,4411.2,2.26695683]
[1755286900233,0.9237,4411.3,4410.9,2.38070121]
[1755286900497,1e-08,4411.4,4410.1,3.0]
[1755286900498,0.1136,4411.1,4410.4,2.26734353]
[1755286900726,0.1136,4410.6,4410.1,2.26748815]
[1755286901038,0.1136,4410.6,4410.0,0.001]
[1755286901204,0.4677,4410.5,4410.0,0.001]
[1755286901619,0.9237,4410.4,4410.1,2.26747843]
[1755286901929,0.9237,4410.3,4410.2,2.26747086]
[1755286902128,1.0373,4410.3,4410.2,2.26747086]
[1755286902498,0.5813,4410.3,4410.2,2.26747086]
[1755286903107,0.4677,4410.3,4410.2,2.26747086]
[1755286909138,0.1136,4410.5,4410.4,2.26736803]
[1755286909300,0.1136,4411.1,4410.5,2.26731663]
[1755286909504,0.1136,4411.3,4411.2,2.26695683]
[1755286909819,0.5813,4411.3,4411.2,2.26695683]
[1755286910700,0.1136,4411.3,4411.2,2.26695683]
[1755286910906,0.5813,4411.3,4411.1,2.26700347]
[1755286911240,0.5813,4411.3,4411.2,2.26695683]
[1755286911413,1e-08,4411.4,4411.3,2.26690544]
[1755286912542,0.46770001,4411.4,4411.3,2.26690544]
[1755286913915,1e-08,4411.4,4411.3,2.26690544]
[1755286915040,0.46770001,4411.4,4411.3,2.26690544]
[1755286916239,0.46770001,4411.4,4411.2,0.1136]
[1755286916544,0.9237,4411.3,4411.1,2.26700191]
[1755286916740,0.9237,4411.2,4410.6,2.26722214]
[1755286916947,3.9947,4411.1,4410.7,0.1136]
[1755286917262,0.1136,4410.7,4410.3,2.26741112]
[1755286917426,0.9237,4410.6,4410.1,2.26750689]
[1755286917746,0.9237,4410.5,4410.0,2.26856664]
[1755286918044,4.4527,4410.4,4410.1,2.26751745]
[1755286918256,3.529,4410.4,4410.1,2.26751745]
[1755286918552,0.9237,4410.3,4410.1,2.26751745]
[1755286918856,0.4677,4410.3,4410.2,2.26747086]
[1755286919057,0.5696,4410.7,4410.1,2.26751075]
[1755286919347,3.528,4410.6,4410.4,2.26732428]
[1755286919513,3.9957,4410.6,4410.5,2.26731663]
[1755286919850,3.527,4410.6,4410.5,2.26731663]
[1755286920015,0.1136,4410.7,4410.6,2.26726522]
[1755286920348,0.9237,4410.6,4410.2,2.38105981]
[1755286920560,0.9237,4410.6,4410.4,2.26735806]
[1755286920561,0.45643,4410.6,4410.4,2.26735806]
[1755286920710,0.9237,4410.5,4410.2,2.26745981]
[1755286920911,0.4677,4410.4,4410.1,2.26848182]
[1755286921348,0.9237,4410.3,4410.1,0.001]
[1755286921812,0.9237,4410.2,4410.1,0.001]
[1755286922017,0.9237,4410.2,4409.9,0.001]
[1755286922217,3.53,4410.1,4409.9,0.001]
[1755286922547,5.26757369,4410.0,4409.9,0.001]
[1755286922715,7.07103106,4410.0,4409.9,0.001]
[1755286924649,2.26767653,4409.8,4409.5,0.001]
[1755286924945,5.26777939,4409.6,4409.5,0.001]
[1755286925111,8.79977939,4409.6,4407.7,2.26871233]
[1755286925457,8.79977939,4409.6,4405.9,2.36060365]
[1755286925458,5.81952929,4406.2,4406.1,0.02]
[1755286925615,16.10325982,4406.2,4406.1,0.02]
[1755286925946,16.10325982,4406.2,4404.1,2.29059716]
[1755286925947,0.55,4405.8,4404.1,2.29059716]
[1755286926111,0.72596192,4405.7,4404.1,0.02]
[1755286926312,2.2700419,4405.3,4404.3,2.27049961]
[1755286926561,0.16793383,4405.3,4404.3,0.4714]
[1755286926716,3.641,4405.2,4404.7,0.4714]
[1755286926911,3.641,4405.2,4404.1,0.0671]
[1755286926912,3.641,4405.2,4404.8,0.4714]
[1755286927114,3.641,4405.2,4404.9,2.27015535]
[1755286927347,3.641,4405.2,4404.2,0.4714]
[1755286927549,3.641,4405.2,4404.4,2.27044594]
[1755286927751,3.641,4405.2,4404.6,2.27030376]
[1755286927958,3.642,4405.2,4404.3,2.27047926]
[1755286928117,3.642,4405.2,4405.1,2.76144771]
[1755286928450,3.642,4405.2,4405.1,0.02]
[1755286929657,0.4394,4406.0,4405.2,2.27004435]
[1755286929841,3.642,4405.9,4405.1,0.02]
[1755286930150,3.642,4405.9,4405.1,2.29009599]
[1755286930346,3.64,4405.8,4405.2,2.27003756]
[1755286930572,5.9917,4406.2,4405.1,0.02]
[1755286930573,5.447,4406.2,4405.8,2.26973215]
[1755286930721,0.4394,4407.2,4406.5,2.26937478]
[1755286930916,4.37185523,4406.6,4406.5,2.26937478]
[1755286931119,4.37185523,4406.6,4405.9,0.4714]
[1755286931120,4.80904075,4406.6,4406.2,2.26952929]
[1755286931424,4.80904075,4406.6,4405.5,2.26984013]
[1755286931425,4.48545523,4406.6,4406.0,0.1136]
[1755286931654,0.8989,4406.5,4406.0,0.1136]
[1755286931857,2.2695808,4406.1,4406.0,0.1136]
[1755286932018,2.26969375,4405.9,4405.0,2.27013997]
[1755286932218,0.1136,4405.6,4405.1,0.249014]
[1755286932445,3.639,4405.5,4405.1,0.249014]
[1755286932649,3.639,4405.5,4405.2,2.27003941]
[1755286932953,3.639,4405.5,4405.1,0.02]
[1755286933268,4.0784,4405.5,4405.1,0.02]
[1755286933462,3.638,4405.4,4405.2,2.27003116]
[1755286933623,3.638,4405.4,4405.1,0.02]
[1755286933823,3.637,4405.3,4405.1,0.02]
[1755286934024,0.1136,4405.6,4405.3,2.26997125]
[1755286934225,3.637,4405.5,4405.1,0.02]
[1755286934627,3.635,4405.4,4405.3,2.26999296]
[1755286935827,3.635,4405.4,4405.1,0.02]
[1755286936051,0.4394,4405.3,4405.1,0.02]
[1755286936224,3.633,4405.2,4405.1,0.02]
[1755286936425,3.633,4405.2,4405.1,2.29009602]
[1755286936629,0.4394,4405.3,4405.1,2.29009602]
[1755286936829,0.1136,4405.6,4405.3,0.001]
[1755286937127,4.0714,4405.5,4405.3,0.001]
[1755286937339,3.632,4405.4,4405.3,0.001]
[1755286937957,0.4394,4405.5,4405.3,0.001]
[1755286938261,0.1136,4405.6,4405.3,0.001]
[1755286938262,3.632,4405.4,4405.3,0.001]
[1755286938458,3.632,4405.4,4405.3,2.27099296]
[1755286938622,3.63,4405.4,4405.3,2.27099296]
[1755286938948,3.63,4405.4,4405.3,0.001]
[1755286939128,4.0694,4405.4,4405.3,0.001]
[1755286939329,3.63,4405.4,4405.3,0.001]
[1755286939665,3.629,4405.4,4405.3,0.001]
[1755286940163,3.629,4405.4,4405.3,2.27099296]
[1755286940322,3.629,4405.4,4405.3,0.001]
[1755286940525,3.626,4405.4,4405.3,0.001]
[1755286940726,3.626,4405.4,4405.3,2.27099296]
[1755286941268,0.47889765,4405.4,4405.3,0.001]
[1755286941828,4.10289765,4405.4,4405.3,0.001]
[1755286943233,4.09989765,4405.4,4405.3,0.001]
[1755286943442,4.53929765,4405.4,4405.3,0.001]
[1755286943955,8.39843684,4405.4,4405.3,0.001]
[1755286944158,2.27004449,4405.2,4405.1,0.02]
[1755286944330,2.86254214,4405.2,4405.1,0.02]
[1755286944533,1.49139765,4405.2,4404.1,0.02]
[1755286944866,0.1136,4404.2,4404.1,0.02]
[1755286945168,5.41307185,4404.2,4404.1,0.02]
[1755286945335,2.22947185,4404.2,4404.1,0.02]
[1755286945535,5.85147185,4404.2,4404.1,0.02]
[1755286945770,0.59249765,4404.2,4404.1,2.29061147]
[1755286945931,0.47889765,4404.2,4404.1,2.29061147]
[1755286946269,4.90080574,4404.2,4404.1,2.29061147]
[1755286946667,4.90080574,4404.2,4404.1,0.02]
[1755286946868,7.27135757,4404.2,4404.1,0.02]
[1755286947083,2.27066303,4404.0,4403.9,0.001]
[1755286947292,2.27076615,4403.8,4403.6,0.001]
[1755286947438,2.27081772,4403.7,4403.6,0.001]
[1755286947630,6.64861537,4403.7,4403.6,0.001]
[1755286947847,8.72172219,4403.7,4403.6,0.001]
[1755286948249,2.27087289,4403.6,4403.1,0.02]
[1755286948447,2.271024,4403.3,4403.1,0.02]
[1755286948657,5.74992165,4403.3,4403.1,0.02]
[1755286948873,7.02154041,4403.3,4403.1,0.02]
[1755286949073,7.92044041,4403.3,4403.1,0.02]
[1755286949637,5.18991641,4403.3,4403.1,0.02]
[1755286949867,6.55260001,4403.3,4403.1,0.02]
[1755286950058,4.54029765,4403.3,4403.1,0.02]
[1755286950254,8.82262401,4403.3,4403.1,0.02]
[1755286950535,12.28212401,4403.3,4403.1,0.02]
[1755286950757,12.28312401,4403.3,4403.1,0.02]
[1755286950958,10.13267225,4403.3,4403.1,0.02]
[1755286951270,8.12136989,4403.3,4403.1,0.02]
[1755286951570,11.74336989,4403.3,4403.1,0.02]
[1755286952258,8.12136989,4403.3,4403.1,0.02]
[1755286952463,11.74336989,4403.3,4403.1,0.02]
[1755286952763,42.29336989,4403.3,4403.1,0.02]
[1755286952965,35.27107558,4403.2,4403.1,0.02]
[1755286953138,0.55,4402.7,4401.1,0.02]
[1755286953494,2.01358267,4401.8,4401.1,0.02]
[1755286953635,2.01358267,4401.6,4401.1,0.02]
[1755286953841,2.01358267,4401.3,4401.1,0.02]
[1755286954083,4.11189765,4401.2,4400.3,2.24253037]
[1755286954263,1.60994159,4400.6,4400.2,2.27261227]
[1755286954577,4.11189765,4400.5,4400.4,2.27252067]
[1755286955367,4.11189765,4400.5,4400.1,0.02]
[1755286955565,1.60994159,4400.3,4400.1,0.02]
[1755286955841,5.71883924,4400.2,4400.1,0.02]
[1755286956067,4.10989765,4400.2,4400.1,2.29267562]
[1755286956743,0.47889765,4400.2,4400.1,2.29267562]
[1755286956936,5.31769911,4400.2,4400.1,0.02]
[1755286957164,4.22449765,4400.2,4400.1,0.02]
[1755286957375,5.42981686,4400.2,4400.1,0.02]
[1755286958085,4.22449765,4400.2,4400.1,0.02]
[1755286958384,5.42940714,4400.2,4400.1,0.02]
[1755286958554,1.79740714,4400.2,4400.1,0.02]
[1755286958875,0.47889765,4400.2,4400.1,5.14523966]
[1755286959044,1.08140065,4400.2,4400.1,5.14523966]
[1755286959373,0.47889765,4400.2,4400.1,5.07613966]
[1755286959575,0.47889765,4400.2,4400.1,2.87167562]
[1755286959779,4.66229765,4400.2,4400.1,0.02]
[1755286959989,0.59249765,4400.2,4400.1,0.02]
[1755286960159,4.11489765,4400.2,4400.1,2.29267562]
[1755286960664,4.92144082,4400.2,4400.1,2.75807562]
[1755286960869,4.11489765,4400.2,4400.1,2.29267562]
[1755286961052,4.12189765,4400.2,4400.1,2.75807562]
[1755286961257,4.12189765,4400.2,4400.1,4.96253966]
[1755286961699,4.72695455,4400.2,4400.1,0.02]
[1755286961850,4.92844082,4400.2,4400.1,0.02]
[1755286962044,1.39904082,4400.2,4400.1,0.02]
[1755286962249,4.23549765,4400.2,4400.1,0.02]
[1755286962449,4.23549765,4400.2,4400.1,2.29267562]
[1755286963256,4.23549765,4400.2,4400.1,0.02]
[1755286963584,5.87420714,4400.2,4400.1,0.02]
[1755286963947,5.43840714,4400.2,4400.1,0.02]
[1755286964354,1.79740714,4400.2,4400.1,0.02]
[1755286964593,5.43740714,4400.2,4400.1,0.02]
[1755286964813,5.27267562,4400.1,4400.0,148.8266]
[1755286965078,6.73537327,4400.1,4400.0,143.29834304]
[1755286965278,9.39359827,4400.1,4400.0,143.29834304]
[1755286965503,13.03460017,4400.1,4400.0,143.29834304]
[1755286965647,8.59963441,4400.1,4400.0,143.29834304]
[1755286965847,7.87231003,4400.1,4400.0,143.29834304]
[1755286966505,0.47889765,4400.1,4400.0,143.29834304]
[1755286966648,0.47889765,4400.1,4400.0,146.03647031]
[1755286966850,4.72393876,4400.1,4400.0,143.76374304]
[1755286967044,4.11889765,4400.1,4400.0,143.29834304]
[1755286967356,4.11889765,4400.1,4400.0,143.76374304]
[1755286968077,4.11689765,4400.1,4400.0,146.03647031]
[1755286968284,4.11689765,4400.1,4400.0,143.76374304]
[1755286968481,4.11689765,4400.1,4400.0,146.03647031]
[1755286969181,0.47889765,4400.1,4400.0,146.10557031]
[1755286969381,0.60504111,4400.8,4400.7,2.27236575]
[1755286969687,4.12148685,4400.8,4400.7,2.73776575]
[1755286970181,1.08952796,4400.8,4400.7,2.73776575]
[1755286970479,4.72552796,4400.8,4400.7,2.73776575]
[1755286970695,4.72651731,4400.8,4400.7,2.73776575]
[1755286971352,1.09051731,4400.8,4400.7,2.73776575]
[1755286971681,4.11848685,4400.8,4400.7,2.73776575]
[1755286973299,4.92521494,4400.8,4400.7,2.73776575]
[1755286973792,4.92406629,4400.8,4400.7,2.73776575]
[1755286974155,5.3274558,4400.8,4400.7,2.73776575]
[1755286974473,1.6964558,4400.8,4400.7,2.73776575]
[1755286974787,5.3254558,4400.8,4400.7,2.85136575]
[1755286974982,0.4863382,4400.8,4400.7,2.85136575]
[1755286975486,0.81181411,4400.9,4400.8,2.27231412]
[1755286975666,0.60880594,4401.2,4401.1,2.27215923]
[1755286975863,0.60880594,4401.2,4401.1,3.9081514]
[1755286976238,0.81181411,4401.6,4401.4,2.27200436]
[1755286976381,3.627,4401.5,4401.4,2.27200436]
[1755286976582,4.0608,4401.5,4400.7,0.4654]
[1755286976897,0.81270846,4401.4,4401.2,2.27206545]
[1755286977193,0.81270846,4401.4,4401.3,2.27205598]
[1755286977395,0.4338,4401.4,4400.9,2.27221342]
[1755286977596,0.81332923,4401.2,4401.1,2.27215923]
[1755286978103,3.625,4401.2,4401.0,2.27220943]
[1755286978268,0.61027229,4401.1,4401.0,2.27220943]
[1755286978464,4.43832923,4401.2,4401.0,2.27220943]
[1755286978797,4.43832923,4401.2,4401.0,0.4654]
[1755286978963,3.625,4401.2,4401.1,2.27215923]
[1755286979169,4.23547042,4401.2,4401.1,2.27215923]
[1755286980176,0.1136,4401.6,4401.2,2.2721076]
[1755286980177,0.81332923,4401.4,4401.2,2.2721076]
[1755286980377,0.002,4401.7,4401.5,0.1136]
[1755286980597,3.622,4401.7,4401.6,2.38550112]
[1755286980804,3.622,4401.7,4401.6,2.85090112]
[1755286981110,3.622,4401.7,4401.6,2.38550112]
[1755286981311,3.622,4401.7,4401.0,0.4654]
[1755286981312,4.58267648,4401.7,4401.0,0.4654]
[1755286981510,0.002,4401.7,4401.6,2.27190112]
[1755286981697,0.002,4401.7,4401.6,2.73730112]
[1755286982580,3.622,4401.7,4401.6,2.73730112]
[1755286983679,4.52161413,4401.7,4400.8,0.4654]
[1755286983913,4.0558,4401.7,4401.6,2.27190112]
[1755286984080,3.622,4401.7,4401.6,2.27190112]
[1755286984426,4.0558,4401.7,4401.5,2.2719477]
[1755286984717,0.4338,4401.6,4400.3,0.4654]
[1755286984880,0.46666818,4401.5,4400.8,2.27227053]
[1755286985082,4.23088185,4401.4,4400.8,2.27227053]
[1755286985309,4.0538,4401.4,4400.8,2.27227053]
[1755286986115,4.0538,4401.4,4400.9,2.27225299]
[1755286986415,0.4649,4401.3,4400.8,2.27230024]
[1755286986630,3.62,4401.4,4400.6,2.27241513]
[1755286986780,0.4649,4401.2,4400.9,2.27221351]
[1755286986985,4.0819,4401.1,4400.9,2.27221351]
[1755286987308,3.617,4401.1,4400.8,2.27230762]
[1755286987517,0.488662,4401.0,4400.9,2.27226249]
[1755286988741,4.103662,4401.0,4400.9,2.75366249]
[1755286988921,3.615,4401.0,4400.9,2.75366249]
[1755286989521,3.615,4401.0,4400.9,0.4814]
[1755286989522,3.614,4401.0,4400.9,0.4814]
[1755286989716,3.614,4401.0,4400.9,2.75366249]
[1755286989909,3.614,4401.0,4400.6,2.27241739]
[1755286990106,3.614,4401.0,4400.0,143.29934304]
[1755286990107,0.4649,4400.9,4400.5,2.27245697]
[1755286990316,0.4649,4400.8,4400.6,2.27241008]
[1755286990489,3.612,4400.7,4400.6,2.27241008]
[1755286991125,0.48870895,4401.1,4400.6,0.4814]
[1755286991323,3.61,4401.0,4400.9,2.27226249]
[1755286991626,3.611,4401.0,4400.9,2.75366249]
[1755286992123,3.611,4401.0,4400.9,2.27226249]
[1755286992333,4.0759,4401.0,4400.8,2.27227258]
[1755286992629,4.0759,4401.0,4400.9,2.27226249]
[1755286993919,4.0759,4401.0,4400.4,0.4814]
[1755286994241,4.0759,4401.0,4400.9,2.27226249]
[1755286994539,0.4649,4401.5,4401.0,2.27216331]
[1755286994691,4.09570895,4401.4,4400.9,0.4814]
[1755286994891,0.4649,4401.3,4401.0,2.27220386]
[1755286995096,3.607,4401.2,4400.9,2.75364765]
[1755286995296,4.0709,4401.1,4400.8,2.27229943]
[1755286995518,0.4649,4401.0,4400.7,2.27235537]
[1755286995722,0.4649,4401.0,4400.8,2.27230889]
[1755286995926,0.48870895,4401.3,4400.9,0.4814]
[1755286996130,3.606,4401.2,4400.1,3.0]
[1755286996312,2.27267562,4400.1,4400.0,143.29934304]
[1755286996518,9.34357562,4400.1,4400.0,142.82434304]
[1755286996719,10.38228457,4400.1,4400.0,142.34934304]
[1755286996939,42.80288983,4400.1,4400.0,142.34934304]
[1755286997114,41.59277223,4400.1,4400.0,142.34934304]
[1755286997314,42.8162443,4400.1,4400.0,141.12070643]
[1755286997512,41.59277223,4400.1,4400.0,141.12070643]
[1755286998213,42.81517558,4400.1,4400.0,141.12070643]
[1755286999114,41.59277223,4400.1,4400.0,141.12070643]
[1755286999832,37.98677223,4400.1,4400.0,141.12070643]
[1755287000019,41.62077223,4400.1,4400.0,141.12070643]
[1755287000221,42.43446611,4400.1,4400.0,141.12070643]
[1755287000637,38.80046611,4400.1,4400.0,141.12070643]
[1755287000826,41.61677223,4400.1,4400.0,141.12070643]
[1755287001207,42.2266738,4400.1,4400.0,141.12070643]
[1755287002340,41.61677223,4400.1,4400.0,141.12070643]
[1755287002540,41.61577223,4400.1,4400.0,141.12070643]
[1755287004053,41.72937223,4400.1,4400.0,141.12070643]
[1755287004721,41.72837223,4400.1,4400.0,141.12070643]
[1755287004920,38.10037223,4400.1,4400.0,141.12070643]
[1755287005121,41.72437223,4400.1,4400.0,141.12070643]
[1755287007260,41.23566328,4400.1,4400.0,141.12070643]
[1755287007560,5.57849695,4401.5,4400.0,142.04210643]
[1755287007755,3.627,4401.1,4400.6,2.27241609]
[1755287008053,3.627,4401.0,4400.7,3.19373427]
[1755287008211,3.627,4401.0,4400.1,2.27267562]
[1755287008212,3.627,4400.9,4400.8,3.51308755]
[1755287008407,3.627,4400.9,4400.8,0.9214]
[1755287008943,3.627,4400.9,4400.8,0.4814]
[1755287009715,3.626,4400.9,4400.8,0.9214]
[1755287010140,3.626,4400.9,4400.8,0.4814]
[1755287015641,0.002,4401.2,4400.8,0.9214]
[1755287015842,0.002,4401.7,4401.6,2.27190112]
[1755287016157,3.118,4401.7,4401.6,2.27190112]
[1755287016342,3.616,4401.8,4401.7,2.27184951]
[1755287016553,3.616,4401.8,4401.7,3.18254951]
[1755287016725,0.002,4402.1,4402.0,2.27169468]
[1755287016921,3.617,4402.1,4402.0,2.27169468]
[1755287017341,3.617,4402.1,4402.0,3.18239468]
[1755287018057,0.002,4402.1,4402.0,3.18239468]
[1755287018359,3.617,4402.1,4402.0,3.18239468]
[1755287018685,3.617,4402.1,4402.0,3.7391732]
[1755287018686,0.002,4402.1,4402.0,3.7391732]
[1755287020029,3.612,4402.1,4401.8,0.1136]
[1755287020266,3.612,4402.1,4401.8,0.5873]
[1755287020541,3.612,4402.1,4401.8,2.85905513]
[1755287020780,3.609,4402.0,4401.9,0.9107]
[1755287020981,3.609,4402.0,4401.9,0.4737]
[1755287021129,3.609,4402.0,4401.8,0.1136]
[1755287021569,3.609,4402.0,4401.8,2.38538842]
[1755287021773,3.609,4402.0,4401.5,2.70890265]
[1755287021935,3.609,4402.0,4401.4,3.4737]
[1755287021936,4.19745482,4402.0,4401.4,0.4737]
[1755287022130,4.19745482,4402.0,4400.8,5.27231412]
[1755287022332,0.1136,4401.6,4401.0,0.1136]
[1755287022554,3.607,4401.5,4401.2,2.2721076]
[1755287022743,3.607,4401.5,4401.4,2.27200436]
[1755287023044,3.607,4401.5,4401.4,0.9107]
[1755287023446,3.607,4401.5,4401.4,0.4737]
[1755287023877,3.607,4401.5,4401.3,2.27203414]
[1755287024046,0.1136,4401.6,4401.4,0.9107]
[1755287024244,0.1156,4402.1,4401.6,2.27185103]
[1755287024539,3.604,4402.0,4401.5,2.38554426]
[1755287025668,3.604,4402.0,4401.6,2.27189003]
[1755287026368,3.604,4402.0,4401.5,2.8592383]
[1755287026744,3.604,4402.0,4401.6,2.27189666]
[1755287027145,3.604,4402.0,4401.7,2.27183378]
[1755287027560,3.604,4402.0,4401.6,3.18259011]
[1755287028166,3.604,4402.0,4401.6,0.9107]
[1755287028461,3.599,4401.9,4401.8,2.2717979]
[1755287028971,3.599,4401.9,4401.8,3.1824979]
[1755287029371,3.599,4401.9,4401.7,2.27183436]
[1755287029971,3.599,4401.9,4401.6,2.27188964]
[1755287030952,0.1156,4402.1,4401.7,2.27184922]
[1755287031172,3.595,4402.0,4401.7,2.27184922]
[1755287031374,3.595,4402.0,4401.6,2.27190052]
[1755287032757,3.595,4402.0,4401.7,2.27184222]
[1755287032988,3.594,4401.9,4401.7,2.27184222]
[1755287033348,3.594,4401.9,4401.5,0.1136]
[1755287033682,2.27190112,4401.6,4401.5,0.1136]
[1755287033878,2.27190112,4401.6,4400.6,0.1136]
[1755287033879,0.1136,4401.6,4400.6,0.1136]
[1755287034064,0.1136,4401.2,4400.6,0.1136]
[1755287034271,3.592,4401.1,4400.6,0.1136]
[1755287034579,3.592,4401.1,4401.0,0.001]
[1755287034786,6.23471923,4401.1,4401.0,0.001]
[1755287034960,7.15461923,4401.1,4401.0,0.001]
[1755287035344,10.64296956,4401.1,4401.0,0.001]
[1755287035683,11.19296956,4401.1,4401.0,0.001]
[1755287036186,10.18146956,4401.1,4401.0,0.001]
[1755287037045,6.58846956,4401.1,4401.0,0.001]
[1755287037575,10.18346956,4401.1,4401.0,0.001]
[1755287037981,6.58846956,4401.1,4401.0,0.001]
[1755287038176,10.18246956,4401.1,4401.0,0.001]
[1755287038396,10.64496956,4401.1,4401.0,0.001]
[1755287038596,10.18246956,4401.1,4401.0,0.001]
[1755287039388,10.64496956,4401.1,4401.0,0.001]
[1755287039763,10.18246956,4401.1,4401.0,0.001]
[1755287041092,10.64496956,4401.1,4401.0,0.001]
[1755287042580,41.19496956,4401.1,4401.0,0.001]
[1755287043836,3.55,4401.0,4400.6,0.001]
[1755287044110,2.82236575,4400.7,4400.6,0.001]
[1755287044317,6.89771608,4400.7,4400.6,0.001]
[1755287044499,7.36021608,4400.7,4400.6,0.001]
[1755287044708,4.23061608,4400.7,4400.6,0.001]
[1755287044903,5.57597392,4400.7,4400.6,0.001]
[1755287045110,9.16297392,4400.7,4400.6,0.001]
[1755287045322,5.57597392,4400.7,4400.6,0.001]
[1755287045620,9.16197392,4400.7,4400.6,0.001]
[1755287046210,9.15997392,4400.7,4400.6,0.001]
[1755287046789,5.11347392,4400.7,4400.6,0.001]
[1755287046992,8.69747392,4400.7,4400.6,0.001]
[1755287047413,10.20072359,4400.7,4400.6,0.001]
[1755287047615,11.69096217,4400.7,4400.6,0.001]
[1755287047823,12.15206217,4400.7,4400.6,0.001]
[1755287049486,8.10796217,4400.7,4400.6,0.001]
[1755287049692,11.69196217,4400.7,4400.6,0.001]
[1755287051189,11.68996217,4400.7,4400.6,0.001]
[1755287051524,12.15106217,4400.7,4400.6,0.001]
[1755287052102,2.82262397,4400.2,4400.1,0.001]
[1755287052431,39.51622397,4400.2,4400.1,0.001]
[1755287052629,42.28256255,4400.2,4400.1,0.001]
[1755287052793,38.24146255,4400.2,4400.1,0.001]